Cogmind - Beta 15 @@@ ROGUE MODE // 2025.08.22 @ 18:04:48 Player: beans Result: Destroyed by H-55 Commando with Gauss Rifle Performance ------------- Evolutions (3) 1500 Regions Visited (6) 1200 Robots Destroyed (75) 375 Value Destroyed (2042) 2042 Prototype IDs (1) 20 Alien Tech Used (0) 0 Bonus (316) 316 TOTAL SCORE: 5453 Bonus ------- Pacifist 200 High Alert Combat Kills 116 Cogmind --------- Core Integrity 0/700 Matter 260/300 Energy 78/100 System Corruption 1% Temperature Cool (0) Movement Core (50) Location -7/Lower Caves Parts ------- > --- POWER (2) -------- (None) > --- PROPULSION (3) --- (None) > --- UTILITY (5) ------ Machine Analyzer Targeting Computer > --- WEAPON (3) ------- Ripper > --- INVENTORY (5) ---- Light Nuclear Core Aluminum Leg Great Axe Peak State ------------ > --- POWER ------------ Nuclear Core Micro Nuclear Core > --- PROPULSION ------- Medium Treads Medium Treads > --- UTILITY ---------- Improved Heat Sink Machine Analyzer Targeting Computer Target Analyzer Kinecellerator > --- WEAPON ----------- Gauss Rifle Gauss Rifle Flak Gun > --- INVENTORY -------- Light Nuclear Core Aluminum Leg Weapon Cycler Assault Rifle Advanced Assault Cannon [Rating: 42] Favorites ----------- Power Nuclear Core Engine Ion Engine Power Core Nuclear Core Propulsion Medium Treads Treads Medium Treads Leg Aluminum Leg Flight Unit Surge Thruster Utility Machine Analyzer Device Improved Heat Sink Processor Machine Analyzer Protection Hardened Light Armor Plating Weapon Gauss Rifle Energy Cannon Plasma Cannon Ballistic Gun Gauss Rifle Ballistic Cannon Flak Cannon Launcher Heavy Missile Launcher Slashing Weapon Great Axe Build | -11 -10 -10 -9 -8 -7 -7 ------- Run | Yrd Mat Min Mat Mat Fac Low Slots Evolved 6 | . . . 2 2 2 . Power 1 | . . . . . 1 . Propulsion 1 | . . . . . 1 . Utility 3 | . . . 2 1 . . Weapon 1 | . . . . 1 . . Parts Attached 43 | 5 . . 2 11 22 3 Power 3 | 1 . . . . 2 . Engine 1 | 1 . . . . . . Core 2 | . . . . . 2 . Reactor . | . . . . . . . Propulsion 11 | 2 . . . 4 5 . Treads 4 | . . . . 2 2 . Leg 3 | 2 . . . . 1 . Wheel . | . . . . . . . Hover . | . . . . . . . Flight 4 | . . . . 2 2 . Utility 11 | . . . 1 4 6 . Device 6 | . . . . 1 5 . Storage . | . . . . . . . Processor 3 | . . . . 2 1 . Hackware . | . . . . . . . Protection 2 | . . . 1 1 . . Artifact . | . . . . . . . Weapon 18 | 2 . . 1 3 9 3 Energy Gun . | . . . . . . . Energy Cannon 2 | . . . . 1 . 1 Ballistic Gun 11 | 2 . . 1 2 6 . Ballistic Cannon 2 | . . . . . 2 . Launcher 1 | . . . . . 1 . Special Weapon . | . . . . . . . Impact Weapon . | . . . . . . . Slashing Weapon 2 | . . . . . . 2 Piercing Weapon . | . . . . . . . Special Melee Weapon . | . . . . . . . Unidentified Prototypes 1 | . . . . . 1 . Parts Lost 22 | . . . . . 21 1 Power 2 | . . . . . 2 . Propulsion 5 | . . . . . 5 . Utility 5 | . . . . . 5 . Weapon 10 | . . . . . 9 1 Highest Loss Streak 9 | . . . . . 9 1 To Critical Strikes . | . . . . . . . Average Backups 3 | . . . 1 2 3 3 Power . | . . . . . . 1 Propulsion . | . . . . 1 1 1 Utility . | . . . . . . . Weapon 1 | . . . . 1 1 1 Tool/Special . | . . . . . . . Unused Backups 1 | . . . . . . 1 Power 1 | . . . . . . 1 Propulsion . | . . . . . . . Utility . | . . . . . . . Weapon . | . . . . . . . Tool/Special . | . . . . . . . Average Slot Usage (%) 70 | . 71 71 58 82 76 21 Engine 3 | . 14 14 11 8 . . Core 5 | . . . . . 9 . Treads 6 | . . . . 2 9 . Leg 5 | . 28 28 22 14 . . Flight 3 | . . . . . 6 . Device 7 | . . . . 2 12 . Processor 15 | . . . . 12 19 15 Protection 3 | . . . 3 15 . . Ballistic Gun 14 | . 28 28 22 25 11 . Ballistic Cannon 2 | . . . . . 4 . Peak Build Rating 42 | 5 5 5 8 25 42 12 Average Rating 24 | 3 5 5 6 17 33 8 On Entrance 6 | . 5 5 5 8 15 4 Naked Turns . | . . . . . . . Heaviest Build 30 | 9 9 9 15 23 30 7 Greatest Support 56 | 20 20 20 20 42 56 3 Greatest Overweight (x) 3 | 1 . . . 1 3 2 Average Overweight (x) . | . . . . . . 1 Largest Inventory Capacity 5 | 5 5 5 5 5 5 5 Average Capacity 5 | 5 5 5 5 5 5 5 Most Carried 5 | 2 . . 2 5 5 4 Average Carried 3 | . . . 1 2 3 3 Final Capacity 5 | 5 5 5 5 5 5 5 Final Carried 4 | . . . 2 4 2 3 Class Distribution -------------------- 39% | Mutant 19% | Scavenger-Gunner 16% | Tank 13% | Scavenger-Mutant 5% | Sprinter 4% | Gunner Dominant Class ---------------- Mutant | -10/Materials Mutant | -10/Mines Mutant | -9/Materials Tank | -8/Materials Scavenger-Gunner | -7/Factory Mutant | -7/Lower Caves Resources | -11 -10 -10 -9 -8 -7 -7 ----------- Run | Yrd Mat Min Mat Mat Fac Low Matter Collected 2410 | 157 . . 211 271 1677 94 Remotely . | . . . . . . . Salvage Created 2603 | . . . 110 565 1866 62 Parts 129 | . . . 8 37 83 1 Haulers Intercepted 4 | . . . 1 1 2 . Recyclers Shooed 9 | . . . 1 3 5 . Parts Field Recycled . | . . . . . . . Retrieved Matter . | . . . . . . . Parts Self-Destructed 4 | . . . . . . 4 Prevented 2 | . . . . . . 2 Kills | -11 -10 -10 -9 -8 -7 -7 ------- Run | Yrd Mat Min Mat Mat Fac Low Combat Hostiles Destroyed 36 | . . . 1 2 32 1 Melee 1 | . . . . . . 1 Guns 21 | . . . 1 2 18 . Cannons 9 | . . . . . 9 . AOE 5 | . . . . . 5 . Classes Destroyed 14 | . . . 3 4 7 . Worker 12 | . . . . 3 9 . Builder 8 | . . . 1 4 3 . Tunneler 1 | . . . . . 1 . Hauler 4 | . . . 1 1 2 . Recycler 8 | . . . . 3 5 . Operator 1 | . . . . . 1 . Watcher 5 | . . . . 1 4 . Swarmer 5 | . . . . . 5 . Grunt 17 | . . . . 1 16 . Brawler 2 | . . . . . 2 . Duelist 1 | . . . . . 1 . Sentry 5 | . . . 1 1 3 . Hunter 3 | . . . . . 3 . Programmer 2 | . . . . . 2 . Thug 1 | . . . . . . 1 Best Kill Streak 8 | . . . 2 4 8 1 Combat Bots Only 5 | . . . 1 1 5 1 Max Kills in Single Turn 4 | . . . 1 2 4 1 Gunslinging 1 | . . . . . 1 . Exploded 4 | . . . . . 4 . Melee 1 | . . . . . . 1 Uniques/NPCs Destroyed . | . . . . . . . Combat | -11 -10 -10 -9 -8 -7 -7 -------- Run | Yrd Mat Min Mat Mat Fac Low Hostile Shots Fired 376 | . . 4 6 10 326 30 Missed 125 | . . 2 2 5 109 7 Hits 251 | . . 2 4 5 217 23 Projectile 251 | . . 2 4 5 217 23 Critical Strikes 8 | . . . . . 7 1 Damage Taken 3407 | . . 22 54 161 2814 356 Core 729 | . . . 27 . 446 256 Absorbed by Shields . | . . . . . . . Ignored by Resistances 4 | . . . . 4 . . Core Remaining (%) 98 | 100 . 100 93 100 . . Volleys Fired 201 | . . . 14 28 156 3 Largest 3 | . . . 2 3 3 1 Hottest 96 | . . . 43 66 96 80 Shots Fired 398 | . . . 28 75 292 3 Gun 276 | . . . 28 75 173 . Cannon 120 | . . . . . 117 3 Launcher 2 | . . . . . 2 . Special . | . . . . . . . Kinetic 393 | . . . 28 75 290 . Thermal 3 | . . . . . . 3 Explosive 2 | . . . . . 2 . Electromagnetic . | . . . . . . . Robot Hit Streak 18 | . . . 6 8 16 18 Robot Miss Streak 12 | . . . 3 3 12 . Penetration Max 1 | . . . . . 1 . Secondary Targets 3 | . . . . . 3 . Max Gunslinging Chain 1 | . . . . . 1 . Shots Hit Robots 268 | . . . 20 40 205 3 Core Hits 215 | . . . 6 22 186 1 Critical Kills 4 | . . . . 1 3 . Critical Parts Destroyed 8 | . . . . 1 7 . Critical Strikes 16 | . . . . 2 14 . Destroy 12 | . . . . 2 10 . Blast 4 | . . . . . 4 . Melee Attacks 3 | . . . . . . 3 Impact . | . . . . . . . Slashing 3 | . . . . . . 3 Piercing . | . . . . . . . Sneak Attacks . | . . . . . . . Combat Hostiles . | . . . . . . . Follow-up Attacks . | . . . . . . . Damage Inflicted 6089 | . . . 260 592 5141 96 Guns 3562 | . . . 260 592 2710 . Cannons 1755 | . . . . . 1704 51 Explosions 727 | . . . . . 727 . Melee 45 | . . . . . . 45 Ramming . | . . . . . . . Kinetic 5266 | . . . 260 592 4414 . Thermal 377 | . . . . . 326 51 Explosive 401 | . . . . . 401 . Electromagnetic . | . . . . . . . Impact . | . . . . . . . Slashing 45 | . . . . . . 45 Piercing . | . . . . . . . Highest Corruption 1 | . . . . . 1 1 Average Corruption 1 | . . . . . 1 1 Corruption Purged . | . . . . . . . Corruption Blocked . | . . . . . . . Effects 7 | . . . . . 2 5 Message Errors 1 | . . . . . . 1 Matter Fused 1 | . . . . . . 1 Heat Flow Errors 2 | . . . . . 1 1 Data Loss (minor) 2 | . . . . . 1 1 Data Loss (major) 1 | . . . . . . 1 Overload Shots . | . . . . . . . Overflow Damage 147 | . . . . . 147 . Projectiles 20 | . . . . . 20 . Explosions 127 | . . . . . 127 . Melee . | . . . . . . . Knockbacks 28 | . . . . . 28 . Impact . | . . . . . . . Kinetic 27 | . . . . . 27 . Secondary 1 | . . . . . 1 . Self-Inflicted Damage 184 | . . . . 86 98 . Shots 4 | . . . . 1 3 . Rammed . | . . . . . . . Targets Rammed . | . . . . . . . Kicked . | . . . . . . . Crushed . | . . . . . . . Highest Temperature 198 | . . . . 54 198 121 Average Temperature 40 | . . . . 14 51 35 Received Heat Transfer 1131 | . . 12 18 27 993 81 Siege Activations . | . . . . . . . Martial Activations . | . . . . . . . Shielding Activations . | . . . . . . . Robots Disrupted . | . . . . . . . Combat Hostiles . | . . . . . . . Robots Corrupted . | . . . . . . . Combat Hostiles . | . . . . . . . Parts Fried . | . . . . . . . Impact Corruptions . | . . . . . . . Robots Melted . | . . . . . . . Combat Hostiles . | . . . . . . . Parts Melted . | . . . . . . . Heat Transferred 350 | . . . . . 250 100 Parts Sabotaged . | . . . . . . . Parts Stolen . | . . . . . . . Parts Stripped . | . . . . . . . Power Chain Reactions . | . . . . . . . Alert | -11 -10 -10 -9 -8 -7 -7 ------- Run | Yrd Mat Min Mat Mat Fac Low Maximum Alert Level 2 | . . . . . 2 . Low Security (%) 78 | 100 100 100 100 100 67 . Level 1 10 | . . . . . 16 . Level 2 10 | . . . . . 16 . Level 3 . | . . . . . . . Level 4 . | . . . . . . . Level 5 . | . . . . . . . High Security . | . . . . . . . Max Security . | . . . . . . . Peak Influence 641 | . . . 30 52 641 . Initial 1 | . . . . . 1 . Average 107 | . . . 6 11 160 . Influence Increases 1470 | . . . 44 168 1198 60 Destroy 0b10 Robot/C 700 | . . . 20 40 640 . Destroy 0b10 Robot/NC 195 | . . . 10 60 125 . Destroy Leader 178 | . . . 12 14 152 . Disable Machine 165 | . . . . 30 135 . Destroy Structure 127 | . . . 2 24 101 . Lose Combat Pursuer 105 | . . . . . 45 60 Influence Decreases 1206 | . . . 44 164 623 375 Entered New Map 218 | . . . . . 3 215 Time Decay 768 | . . . 44 164 410 150 Lost Part 220 | . . . . . 210 10 Squads Dispatched 8 | . . . . . 8 . Investigation . | . . . . . . . Extermination 3 | . . . . . 3 . Reinforcement 2 | . . . . . 2 . Assault 2 | . . . . . 2 . Garrison 1 | . . . . . 1 . Intercept . | . . . . . . . Searches Triggered . | . . . . . . . Construction Impeded 1 | . . . . . 1 . Haulers Reinforced . | . . . . . . . Active Scanning Responses . | . . . . . . . Cargo Convoy Interrupts . | . . . . . . . Stealth | -11 -10 -10 -9 -8 -7 -7 --------- Run | Yrd Mat Min Mat Mat Fac Low Distress Signals 2 | . . . . 1 1 . Communications Jammed . | . . . . . . . Distress Signals . | . . . . . . . Times Spotted 85 | . . 2 1 7 65 10 Peak Tracking Total 9 | . . 2 1 2 6 9 Tactical Retreats 6 | . . . . . 3 3 Traps | -11 -10 -10 -9 -8 -7 -7 ------- Run | Yrd Mat Min Mat Mat Fac Low Traps Triggered 1 | . . . . . 1 . Indirectly . | . . . . . . . Trap Hack Attempts . | . . . . . . . Triggered . | . . . . . . . Disarmed . | . . . . . . . Reprogrammed . | . . . . . . . Reused . | . . . . . . . Traps Extracted . | . . . . . . . Installed . | . . . . . . . Triggered . | . . . . . . . Machines | -11 -10 -10 -9 -8 -7 -7 ---------- Run | Yrd Mat Min Mat Mat Fac Low Machines Disabled 11 | . . . . 2 9 . Max in Single Turn 4 | . . . . 2 4 . Garrison Access 1 | . . . . . 1 . Machines Repaired . | . . . . . . . Machines Dismantled . | . . . . . . . Machines Sabotaged . | . . . . . . . Overloaded Fab Kills . | . . . . . . . Hacking | -11 -10 -10 -9 -8 -7 -7 --------- Run | Yrd Mat Min Mat Mat Fac Low Machines Accessed 1 | . . . . . . 1 Terminals . | . . . . . . . Fabricators . | . . . . . . . Repair Stations . | . . . . . . . Recycling Units . | . . . . . . . Scanalyzers . | . . . . . . . Garrison Access . | . . . . . . . Total Hacks 1 | . . . . . . 1 Successful 1 | . . . . . . 1 Failed . | . . . . . . . Catastrophic . | . . . . . . . Database Lockouts . | . . . . . . . Manual . | . . . . . . . Terminals . | . . . . . . . Fabricators . | . . . . . . . Repair Stations . | . . . . . . . Recycling Units . | . . . . . . . Scanalyzers . | . . . . . . . Garrison Access . | . . . . . . . Terminal Hacks 1 | . . . . . . 1 Open Door 1 | . . . . . . 1 Fabricator Hacks . | . . . . . . . Repair Station Hacks . | . . . . . . . Recycling Unit Hacks . | . . . . . . . Scanalyzer . | . . . . . . . Garrison Access Hacks . | . . . . . . . Unauthorized Hacks . | . . . . . . . Terminals . | . . . . . . . Fabricators . | . . . . . . . Repair Stations . | . . . . . . . Recycling Units . | . . . . . . . Scanalyzers . | . . . . . . . Garrison Access . | . . . . . . . Data Cores Recovered 1 | . . . . . 1 . Used . | . . . . . . . Hacking Detections . | . . . . . . . Full Trace Events . | . . . . . . . Feedback Events . | . . . . . . . Feedback Blocked . | . . . . . . . Robot Schematics Acquired . | . . . . . . . Robots Built . | . . . . . . . Authchips . | . . . . . . . Time . | . . . . . . . Total Robot Build Rating . | . . . . . . . Part Schematics Acquired . | . . . . . . . Parts Built . | . . . . . . . Authchips . | . . . . . . . Time . | . . . . . . . Total Part Build Rating . | . . . . . . . Parts Repaired . | . . . . . . . Time . | . . . . . . . Parts Recycled . | . . . . . . . Recycled Matter . | . . . . . . . Retrieved Matter . | . . . . . . . Retrieved Components . | . . . . . . . Parts Scanalyzed . | . . . . . . . Part Schematics Acquired . | . . . . . . . Parts Damaged . | . . . . . . . Bothacking | -11 -10 -10 -9 -8 -7 -7 ------------ Run | Yrd Mat Min Mat Mat Fac Low Used RIF Installer . | . . . . . . . Robots Hacked . | . . . . . . . Non-combat . | . . . . . . . Combat . | . . . . . . . Robot Hacks Applied . | . . . . . . . Relay Couplers Released 2 | . . . . . 2 . Machine Destruction 2 | . . . . . 2 . Fabnet Peak Effective % . | . . . . . . . Robots Rewired . | . . . . . . . Allies Hacked . | . . . . . . . Hacks Repelled . | . . . . . . . Allies | -11 -10 -10 -9 -8 -7 -7 -------- Run | Yrd Mat Min Mat Mat Fac Low Total Allies . | . . . . . . . Largest Group . | . . . . . . . Highest-Rated Group . | . . . . . . . Highest-Rated Ally . | . . . . . . . Total Orders . | . . . . . . . Ally Attacks . | . . . . . . . Total Damage . | . . . . . . . Kills . | . . . . . . . Allies Corrupted . | . . . . . . . Allies Melted . | . . . . . . . Intel | -11 -10 -10 -9 -8 -7 -7 ------- Run | Yrd Mat Min Mat Mat Fac Low Active Infowar (turns) 2429 | . . . . 328 1799 302 Machine Analysis 2429 | . . . . 328 1799 302 Robot Analysis Total . | . . . . . . . Derelict Logs Recovered . | . . . . . . . Drone Launches . | . . . . . . . Drone Recoveries . | . . . . . . . Exploration | -11 -10 -10 -9 -8 -7 -7 ------------- Run | Yrd Mat Min Mat Mat Fac Low Turns Passed 3058 | 41 51 39 193 633 1799 302 Spaces Moved 2018 | 32 43 33 117 350 1178 265 Core 297 | 14 . . . . 18 265 Treads 626 | . . . . 39 587 . Legs 475 | 18 43 33 117 251 13 . Wheels . | . . . . . . . Hover . | . . . . . . . Flight 620 | . . . . 60 560 . Fastest Speed 23 | 50 120 120 120 26 23 50 Average Speed 117 | 98 120 120 120 145 112 102 Slowest Speed 225 | 120 120 120 120 225 200 150 Overloaded Moves 14 | . . . . 10 4 . Propulsion Burnouts . | . . . . . . . Robots Hopped . | . . . . . . . Potential Cave-ins . | . . . . . . . Cave-ins Triggered . | . . . . . . . Exploration Rate (%) 23 | 3 17 15 17 30 35 46 Regions Visited 6 Branch Regions 2 Pre-discovered Areas . | . . . . . . . Known Exits Taken . | . . . . . . . Unknown Exits Taken 6 | 1 1 1 1 1 1 . Scrap Searched 2 | . . . . . . 2 Spaces Dug . | . . . . . . . Terrain Destroyed 149 | . . . . 26 123 . Melee . | . . . . . . . Projectile 11 | . . . . . 11 . AOE 138 | . . . . 26 112 . Terrain Rammed . | . . . . . . . Walls Destroyed . | . . . . . . . Machines Disabled . | . . . . . . . Actions | -11 -10 -10 -9 -8 -7 -7 --------- Run | Yrd Mat Min Mat Mat Fac Low Total 2378 | 41 42 32 141 420 1412 290 Wait 42 | . . . 6 . 24 12 Move 2012 | 31 42 32 116 349 1177 265 Hop . | . . . . . . . Pick Up 44 | 5 . . 3 13 20 3 Fast Attach 3 | . . . . . 3 . Attach 45 | 5 . . 1 14 22 3 Detach 4 | . . . . 3 . 1 Swap 6 | . . . 1 1 4 . Drop 18 | . . . . 12 6 . Fire 201 | . . . 14 28 156 3 Melee 3 | . . . . . . 3 Ram . | . . . . . . . Kick . | . . . . . . . Crush . | . . . . . . . Escape Stasis . | . . . . . . . Rewire . | . . . . . . . Trap . | . . . . . . . Miscellaneous . | . . . . . . . Route ------- -11/Scrapyard -10/Materials -10/Mines -9/Materials -8/Materials -7/Factory (discovered 3 exits: [*Fac x2] / *Low) -7/Lower Caves History --------- Turn | Location | Event 6 | -11/Scrapyard | Discovered new exit (range 16) 42 | -11/Scrapyard | Entered Materials 68 | -10/Materials | Discovered new exit (range 16) 93 | -10/Materials | Entered Mines 122 | -10/Mines | Discovered new exit (range 8) 132 | -10/Mines | Entered Materials 132 | -9/Materials | Evolved 2 slots: Utility x2 304 | -9/Materials | Discovered new exit (range 15) 308 | -9/Materials | Build established: Mutant 325 | -9/Materials | Entered another Materials area 325 | -8/Materials | Evolved 2 slots: Utility x1, Weapon x1 727 | -8/Materials | Build established: Tank 946 | -8/Materials | Discovered new exit (range 16) 958 | -8/Materials | Entered Factory 958 | -7/Factory | Evolved 2 slots: Power x1, Propulsion x1 1401 | -7/Factory | Garrison activated, responded to threat 1588 | -7/Factory | Discovered new exit (range 16) 2026 | -7/Factory | Build established: Scavenger-Gunner 2454 | -7/Factory | Build established: Scavenger-Mutant 2520 | -7/Factory | Discovered new exit (range 12) 2712 | -7/Factory | Lost 5 parts (1p2n2w) 2720 | -7/Factory | Discovered new exit (range 9) 2752 | -7/Factory | Core integrity fell below 50% 2757 | -7/Factory | Entered Lower Caves 2762 | -7/Lower Caves | Ambushed by wild Derelicts 2783 | -7/Lower Caves | Attracted the attention of an 0b10 outpost 2786 | -7/Lower Caves | Lost 9 parts (1n4u4w) 2834 | -7/Lower Caves | Core integrity fell below 20% 3041 | -7/Lower Caves | Build established: Mutant 3059 | -7/Lower Caves | Destroyed by H-55 Commando with Gauss Rifle Last Messages --------------- Sealed Heavy Doors opened. Acquired Ripper. System corrupted: Component data lost. WW-Q3X(g) destroyed. Acquired 62 matter. Searching scrap... Found Plasma Cannon. Found Imp. Hover Unit. Found 32 Matter. Acquired 32 matter. Acquired Plasma Cannon. System corrupted: Substantial component data lost. System corrupted: Matter fused (-9). Slug penetrates Wall. Penetrated by Slug. Plasma Cannon destroyed. Penetrated by Slug. J2RRK6PAXOG9K OVCEFA3=GGXK Penetrated by Slug. Map ----- +----------------------------------------------------+ | ?????????????????????? ????????????????????????? | | ?????????????????????? ????????????????????????? | | ????????????????????? ????????????????????????? | | ?????????????????????# ????????????????????????? | | ??????????????????#### ????????????????????????? | | ??????????????##### ????????????????????????? | | ?????????????## ????????????????????????? | | ????????????## ?????????? ???????????? | | ????????????? #????????? ??????????? | | ?????????????? ##??????? #??????????? | | ???????????????# ###????? #??????????? | | ???????????????# ##??? #???????????? | | ???????????????# ##?# #????????????? | | ????????????????# ## #?????????????? | | ?????????????# ## ##????????????? | | ?????????????# #????????????? | | ????????????## ##?????????????????? | | ???????????# #??????????????????? | | ??????????# ## ##??????????????????? | | ????????? #????# ## #???????????????????? | | ????????????????# #?## #???????????????????? | | ???????????????# #???# ###???????????????????? | | ???????????????#####????# #?????????????????????? | | ??????????????????####??# ##???? ??????????????? | | ?????????????????## ### ##### #???????###???? | | ?????????????????# ##@ # #?##????# #???? | | ?????????????????# ###h ### ##### #???? | | ?????????????????# ## #???? | | ???????????????????# ##??? | | ???????????????????### ### ##?? | | ????????????###??????# ##### ### ### | | ???????????## ##?##### #????# ## ## | | ???????????# ### #???## ##?# | | ???????????# ##??## ##????# | | ??????????## #####?### #?##### | | ??????????# ##????## #?# | | ?????????## ##?????# ### | | ???#####?# #??????# | | ???# ### #???????# | | ???# ## ##?#####?# ## | | ???# ##### ### ## "" " | | ##### ##?# ##"="" """" | | # ##??# # #" """ ""# # | | # #### ## " "" ## ## | | # ## # ## """"" "## ## ## | | ## ### " "## # ##?# | | #?## # ##??? | | # ##?## ## ## ## #???? | | ## #### ###### ##### ############ ???? | | ### #????## #??# #????????? ???? | +----------------------------------------------------+ Best States ------------- Heat Dissipation 48 Energy Generation 24 Energy Capacity 290 Matter Stores 300 Matter Capacity 300 Sight Range 16 Terrain Scan Density 10 Additional Mass Support 9 Armor Coverage 300 Resistance: TH 10 Weapon Cycling 15 Evasion (%) 64 Targeting Accuracy 5 Target Analysis 5 Recoil Reduction 6 Kinecelleration 30 Item Schematics ----------------- None Robot Schematics ------------------ None Fabricated ------------ Nothing Repaired ---------- Nothing Alien Tech Used ----------------- None Achievements -------------- None Challenges ------------ None Game ------ Seed InterceptVortexTelecube Manual? 0 Play Time 00:30:00 Cumulative 99.8 hours Start 2025.08.22 @ 16:39:44 End 2025.08.22 @ 18:04:48 Sessions 1 Manual Loads 0 Difficulty Rogue Special Mode None Game No. 382 Rogue 382 Adventurer 0 Explorer 0 Win Type - Total 0 Types 0/0/0/0/0/0/0/0/0/0 Lore% 43 Gallery% 41 Achievement% 31 Wizard Run 0 Options --------- Layout 2 ASCII 0 Keyboard 0 Movement Mouse Keybinds 0 Fullscreen 2 Font 24/Smallcaps Map View 50x44 Zoom Use 0% Tactical HUD 0 Map Filters NONE Filters NONE Steam 1 RUN: 8eab5a81-96b2-4885-aab0-37171a087d6a